Workbook

Sheet Sheet4 (hidden)
A1: COUNTY | B1: Indicator 1 - Percent of infants and toddlers with Individual Family Service Plans (IFSP) who receive the early intervention services on their IFSPs in a timely manner. | C1: Indicator 2 - Percent of infants and toddlers with IFSPs who primarily receive early intervention services in the home or programs for typically developing children. | D1: Indicator 3 Outcome 1 Summary Statement 1 Of the children who entered the program below age expectations in each outcome, the percent who substantially increased their rate of growth by the time they exited B-3 | E1: Indicator 3 Outcome 1 Summary Statement 2 The percent of children who were functioning within age expectations in each Outcome by the time they exited the program | F1: Indicator 3 Outcome 2 Summary Statement 1 Of the children who entered the program below age expectations in each Outcome, the percent who substantially increased their rate of growth by the time they exited B-3 | G1: Indicator 3 Outcome 2 Summary Statement 2 The percent of children who were functioning within age expectations in each Outcome by the time they exited the program | H1: Indicator 3 Outcome 3 Summary Statement 1 Of the children who entered the program below age expectations in each outcome, the percent who substantially increased their rate of growth by the time they exited B-3 | I1: Indicator 3 Outcome 3 Summary Statement 2 The percent of children who were functioning within age expectations in each Outcome by the time they exited the program | J1: Indicator 4A - Percent of families reporting early intervention services have helped the family know their rights. | K1: Indicator 4B - Percent of families reporting early intervention services have helped the family effectively communicate their child's needs. | L1: Indicator 4C - Percent of families reporting early intervention services have helped the family help their child develop and learn. | M1: Indicator 5- Percent of infants and toddlers birth to 1 with IFSPs. | N1: Indicator 6 - Percent of infants and toddlers birth to 3 with IFSPs. | O1: Indicator 7- Percent of eligible infants and toddlers with IFSPs for whom an evaluation and assessment and initial IFSP meeting were conducted in a timely manner. | P1: Indicator 8A - Percent of all children exiting Part C who received timely transition planning to support the child's transition to preschool and other appropriate community services by their third birthday including: IFSPs with transition steps and services. | Q1: Indicator 8B - Percent of all children exiting Part C who received timely transition planning to support the child's transition to preschool and other appropriate community services by their third birthday including: Notification to LEA, if child potentially eligible for Part B. | R1: Indicator 8C - Percent of all children exiting Part C who received timely transition planning to support the child's transition to preschool and other appropriate community services by their third birthday including transition planning conference, if child potentially eligible for Part B.
A2: State Target | B2: 1 | C2: 0.9634 | D2: 0.5903 | E2: 0.6613 | F2: 0.6613 | G2: 0.5073 | H2: 0.6953 | I2: 0.6853 | J2: 0.8288 | K2: 0.8754 | L2: 0.8525 | M2: 0.95 | N2: 0.0283 | O2: 1 | P2: 1 | Q2: 1 | R2: 1
A3: Overall State Result | B3: =AVERAGE(B4:B74) -> 0.9989967226 | C3: 0.9917 | D3: 0.543752128 | E3: 0.5217819345 | F3: 0.6120879121 | G3: 0.3856756092 | H3: 0.641567187 | I3: 0.537533842 | J3: 0.8637 | K3: 0.9349 | L3: 0.9157 | M3: 0.0103 | N3: 0.0285 | O3: 0.9942 | P3: 0.9978 | Q3: 0.9871 | R3: 0.9902
A4: Adams County | B4: 1 | C4: 1 | D4: 0.75 | E4: 0.7222222222 | F4: 0.6875 | G4: 0.6111111111 | H4: 0.8333333333 | I4: 0.9444444444 | J4: 1 | K4: 1 | L4: 1 | M4: 0.02272727273 | N4: 0.06812652068 | O4: 0.9736842105 | P4: 1 | Q4: 1 | R4: 0.9444444444
A5: Ashland County | B5: 1 | C5: 1 | D5: 0.5 | E5: 0.8 | F5: 0.75 | G5: 0.6 | H5: 1 | I5: 0.6 | J5: 0 | K5: 0 | L5: 0 | M5: 0.01075268817 | N5: 0.01098901099 | O5: 0.9166666667 | P5: 1 | Q5: 1 | R5: 0.75
A6: Barron County | B6: 1 | C6: 1 | D6: 0.2 | E6: 0.5428571429 | F6: 0.5357142857 | G6: 0.4857142857 | H6: 0.347826087 | I6: 0.5142857143 | J6: 0.9429 | K6: 0.9821 | L6: 0.9702 | M6: 0.008130081301 | N6: 0.02716688228 | O6: 1 | P6: 1 | Q6: 1 | R6: 1
A7: Bayfield County | B7: 1 | C7: 1 | D7: 0.75 | E7: 0.5714285714 | F7: 0.7142857143 | G7: 0.2857142857 | H7: 0.4285714286 | I7: 0.2857142857 | J7: 0 | K7: 0 | L7: 0 | M7: 0 | N7: 0.01436781609 | O7: 0.5 | P7: 1 | Q7: 1 | R7: 0.75
A8: Brown County | B8: 1 | C8: 0.9917355372 | D8: 0.6050955414 | E8: 0.4147727273 | F8: 0.6666666667 | G8: 0.3352272727 | H8: 0.6176470588 | I8: 0.3806818182 | J8: 0.7 | K8: 0.9529 | L8: 0.8941 | M8: 0.01010976314 | N8: 0.02366979656 | O8: 1 | P8: 1 | Q8: 1 | R8: 1
A9: Buffalo County | B9: 1 | C9: 1 | D9: 0.4 | E9: 0.5555555556 | F9: 0.5 | G9: 0.4444444444 | H9: 0.6 | I9: 0.6666666667 | J9: 0.95 | K9: 1 | L9: 1 | M9: 0.008064516129 | N9: 0.03431372549 | O9: 1 | P9: 1 | Q9: 1 | R9: 1
A10: Burnett County | B10: 0.96875 | C10: 1 | D10: 0.5 | E10: 0.5 | F10: 0.8 | G10: 0.3 | H10: 0.5714285714 | I10: 0.6 | J10: 0.9167 | K10: 0.9722 | L10: 0.9306 | M10: 0.05172413793 | N10: 0.0582010582 | O10: 1 | P10: 1 | Q10: 1 | R10: 1
A11: Calumet County | B11: 1 | C11: 1 | D11: 0.2083333333 | E11: 0.4411764706 | F11: 0.4333333333 | G11: 0.2352941176 | H11: 0.5789473684 | I11: 0.6176470588 | J11: 0.94 | K11: 0.8333 | L11: 0.9166 | M11: 0.009671179884 | N11: 0.03079710145 | O11: 1 | P11: 1 | Q11: 1 | R11: 1
A12: Chippewa County | B12: 1 | C12: 1 | D12: 0.1333333333 | E12: 0.6976744186 | F12: 0.2571428571 | G12: 0.3488372093 | H12: 0.4 | I12: 0.7906976744 | J12: 0.9 | K12: 0.9157 | L12: 0.9036 | M12: 0.0101010101 | N12: 0.032 | O12: 1 | P12: 1 | Q12: 1 | R12: 1
A13: Clark County | B13: 1 | C13: 1 | D13: 0.5 | E13: 0.4666666667 | F13: 0.8275862069 | G13: 0.2666666667 | H13: 0.5833333333 | I13: 0.3333333333 | J13: 0.9429 | K13: 0.9345 | L13: 0.9345 | M13: 0.003597122302 | N13: 0.02423542989 | O13: 1 | P13: 1 | Q13: 1 | R13: 1
A14: Columbia County | B14: 1 | C14: 1 | D14: 0.6666666667 | E14: 0.5 | F14: 0.55 | G14: 0.2272727273 | H14: 0.8333333333 | I14: 0.6818181818 | J14: 0.9857 | K14: 0.994 | L14: 1 | M14: 0.001639344262 | N14: 0.01745771959 | O14: 1 | P14: 1 | Q14: 1 | R14: 1
A15: Crawford County | B15: 1 | C15: 1 | D15: 0.5 | E15: 0.3571428571 | F15: 0.5 | G15: 0.1428571429 | H15: 0.6666666667 | I15: 0.6428571429 | J15: 1 | K15: 1 | L15: 0.9583 | M15: 0.005780346821 | N15: 0.04713114754 | O15: 1 | P15: 1 | Q15: 1 | R15: 1
A16: Dane County | B16: 0.9937694704 | C16: 1 | D16: 0.4069767442 | E16: 0.5141700405 | F16: 0.5526315789 | G16: 0.4170040486 | H16: 0.5432692308 | I16: 0.4858299595 | J16: 0.8 | K16: 0.8541 | L16: 0.8405 | M16: 0.007659167066 | N16: 0.02168713991 | O16: 1 | P16: 0.9969879518 | Q16: 0.9946236559 | R16: 0.9937888199
A17: Dodge County | B17: 1 | C17: 1 | D17: 0.4807692308 | E17: 0.4938271605 | F17: 0.5882352941 | G17: 0.3950617284 | H17: 0.5964912281 | I17: 0.5432098765 | J17: 0.89 | K17: 0.9158 | L17: 0.8542 | M17: 0.01292596945 | N17: 0.03713838937 | O17: 0.9813084112 | P17: 0.9885057471 | Q17: 0.9393939394 | R17: 0.9375
A18: Door County | B18: 1 | C18: 1 | D18: 0.6666666667 | E18: 0.7647058824 | F18: 0.6 | G18: 0.4705882353 | H18: 0.9090909091 | I18: 0.7647058824 | J18: 0.99 | K18: 0.9778 | L18: 0.9778 | M18: 0.004716981132 | N18: 0.03531300161 | O18: 1 | P18: 1 | Q18: 1 | R18: 1
A19: Douglas County | B19: 1 | C19: 1 | D19: 0.5 | E19: 0.4827586207 | F19: 0.6896551724 | G19: 0.1724137931 | H19: 0.6363636364 | I19: 0.5517241379 | J19: 0.8188 | K19: 0.8385 | L19: 0.8073 | M19: 0.0171990172 | N19: 0.02811550152 | O19: 1 | P19: 0.9696969697 | Q19: 0.96 | R19: 0.9583333333
A20: Dunn County | B20: 1 | C20: 0.9591836735 | D20: 0.4761904762 | E20: 0.5757575758 | F20: 0.75 | G20: 0.4545454545 | H20: 0.7777777778 | I20: 0.7272727273 | J20: 0.8 | K20: 0.9626 | L20: 0.9259 | M20: 0.01716738197 | N20: 0.03571428571 | O20: 1 | P20: 1 | Q20: 1 | R20: 1
A21: Eau Claire County | B21: 1 | C21: 1 | D21: 0.5882352941 | E21: 0.4512195122 | F21: 0.6756756757 | G21: 0.4024390244 | H21: 0.7826086957 | I21: 0.6097560976 | J21: 0.93 | K21: 0.9931 | L21: 0.9792 | M21: 0.008298755187 | N21: 0.03441353599 | O21: 1 | P21: 1 | Q21: 1 | R21: 1
A22: Florence County | B22: 1 | C22: 1 | D22: 0 | E22: 0 | F22: 0 | G22: 0 | H22: 0 | I22: 0 | J22: 0 | K22: 0 | L22: 0 | M22: 0 | N22: 0.01136363636 | O22: 0.00 % | P22: 1 | Q22: 1 | R22: 1
A23: Fond du Lac County | B23: 1 | C23: 1 | D23: 0.5471698113 | E23: 0.4461538462 | F23: 0.4909090909 | G23: 0.3846153846 | H23: 0.6666666667 | I23: 0.4769230769 | J23: 0.84 | K23: 0.8333 | L23: 0.8333 | M23: 0.01128880527 | N23: 0.03086419753 | O23: 1 | P23: 1 | Q23: 0.9850746269 | R23: 0.9838709677
A24: Forest County | B24: 1 | C24: 1 | D24: 0.5 | E24: 0.6 | F24: 0.3333333333 | G24: 0.6 | H24: 0.6 | I24: 0.6 | J24: 1 | K24: 0.9583 | L24: 1 | M24: 0 | N24: 0.0229226361 | O24: 1 | P24: 1 | Q24: 1 | R24: 1
A25: Grant County | B25: 1 | C25: 1 | D25: 0.7272727273 | E25: 0.7894736842 | F25: 0.6 | G25: 0.5789473684 | H25: 0.75 | I25: 0.7894736842 | J25: 0.86 | K25: 0.85 | L25: 0.8833 | M25: 0.009541984733 | N25: 0.01510383889 | O25: 1 | P25: 1 | Q25: 0.9333333333 | R25: 0.9333333333
A26: Green County | B26: 1 | C26: 1 | D26: 0.3846153846 | E26: 0.6666666667 | F26: 0.65 | G26: 0.6666666667 | H26: 0.6470588235 | I26: 0.7407407407 | J26: 0.9167 | K26: 0.9306 | L26: 0.9167 | M26: 0 | N26: 0.03392705683 | O26: 1 | P26: 1 | Q26: 0.9411764706 | R26: 1
A27: Green Lake County | B27: 1 | C27: 1 | D27: 0.2222222222 | E27: 0.1111111111 | F27: 0.125 | G27: 0.2222222222 | H27: 0.125 | I27: 0.2222222222 | J27: 0.96 | K27: 1 | L27: 1 | M27: 0 | N27: 0.02912621359 | O27: 1 | P27: 1 | Q27: 1 | R27: 1
A28: Iowa County | B28: 1 | C28: 1 | D28: 0.1666666667 | E28: 0.5454545455 | F28: 0.6 | G28: 0.4545454545 | H28: 0.6666666667 | I28: 0.6363636364 | J28: 0.9787 | K28: 1 | L28: 1 | M28: 0.003891050584 | N28: 0.01505646173 | O28: 1 | P28: 1 | Q28: 1 | R28: 1
A29: Iron County | B29: 1 | C29: 1 | D29: 0 | E29: 0 | F29: 0 | G29: 0 | H29: 0 | I29: 0 | J29: 1 | K29: 1 | L29: 1 | M29: 0.025 | N29: 0.01680672269 | O29: 1 | P29: 0.00 | Q29: 0.00 | R29: 0
A30: Jackson County | B30: 1 | C30: 1 | D30: 0.4 | E30: 0.2 | F30: 0.6 | G30: 0.6 | H30: 0.8 | I30: 0.6 | J30: 1 | K30: 0.9917 | L30: 0.9833 | M30: 0.004081632653 | N30: 0.01532033426 | O30: 1 | P30: 1 | Q30: 1 | R30: 1
A31: Jefferson County | B31: 1 | C31: 1 | D31: 0.4310344828 | E31: 0.4556962025 | F31: 0.5394736842 | G31: 0.2151898734 | H31: 0.6607142857 | I31: 0.5949367089 | J31: 0.82 | K31: 0.8397 | L31: 0.8141 | M31: 0.009846827133 | N31: 0.04017692591 | O31: 1 | P31: 1 | Q31: 1 | R31: 0.9861111111
A32: Juneau County | B32: 1 | C32: 1 | D32: 0.4545454545 | E32: 0.5714285714 | F32: 0.5 | G32: 0.4285714286 | H32: 0.6153846154 | I32: 0.5714285714 | J32: 0.8 | K32: 0.875 | L32: 0.8281 | M32: 0.03319502075 | N32: 0.0338770389 | O32: 1 | P32: 1 | Q32: 1 | R32: 1
A33: Kenosha County | B33: 1 | C33: 1 | D33: 0.3548387097 | E33: 0.8308823529 | F33: 0.5471698113 | G33: 0.5 | H33: 0.6 | I33: 0.7941176471 | J33: 0.88 | K33: 0.9535 | L33: 0.9398 | M33: 0.0111223458 | N33: 0.0287673524 | O33: 0.9829787234 | P33: 1 | Q33: 0.990990991 | R33: 0.9900990099
A34: Kewaunee County | B34: 1 | C34: 1 | D34: 0.5454545455 | E34: 0.5384615385 | F34: 0.6666666667 | G34: 0.2307692308 | H34: 0.6 | I34: 0.4615384615 | J34: 0.8375 | K34: 0.9271 | L34: 0.8854 | M34: 0 | N34: 0.02657807309 | O34: 1 | P34: 1 | Q34: 0.9333333333 | R34: 1
A35: LaCrosse County | B35: 0.995215311 | C35: 1 | D35: 0.5471698113 | E35: 0.4035087719 | F35: 0.537037037 | G35: 0.3333333333 | H35: 0.6071428571 | I35: 0.3684210526 | J35: 0.8 | K35: 0.8462 | L35: 0.8205 | M35: 0.007930214116 | N35: 0.02831672784 | O35: 1 | P35: 1 | Q35: 0.8888888889 | R35: 1
A36: Lafayette County | B36: 1 | C36: 1 | D36: 0% | E36: 1 | F36: 1 | G36: 1 | H36: 1 | I36: 1 | J36: 0 | K36: 0 | L36: 0 | M36: 0.004587155963 | N36: 0.02369668246 | O36: 1 | P36: 1 | Q36: 1 | R36: 1
A37: Langlade County | B37: 1 | C37: 1 | D37: 0.4 | E37: 0.3636363636 | F37: 0.4 | G37: 0.3636363636 | H37: 0.4 | I37: 0.4545454545 | J37: 1 | K37: 1 | L37: 1 | M37: 0 | N37: 0.01890034364 | O37: 1 | P37: 1 | Q37: 1 | R37: 1
A38: Lincoln County | B38: 0.9782608696 | C38: 1 | D38: 0.2727272727 | E38: 0.25 | F38: 0.4166666667 | G38: 0.25 | H38: 0.5 | I38: 0.25 | J38: 1 | K38: 1 | L38: 1 | M38: 0.01119402985 | N38: 0.02948402948 | O38: 1 | P38: 1 | Q38: 1 | R38: 1
A39: Manitowoc County | B39: 1 | C39: 1 | D39: 0.6949152542 | E39: 0.5949367089 | F39: 0.671641791 | G39: 0.4430379747 | H39: 0.7419354839 | I39: 0.6075949367 | J39: 0.99 | K39: 0.99 | L39: 0.98 | M39: 0.00736196319 | N39: 0.04242174629 | O39: 1 | P39: 1 | Q39: 1 | R39: 1
A40: Marathon County | B40: 0.9966555184 | C40: 1 | D40: 0.4646464646 | E40: 0.2952380952 | F40: 0.42 | G40: 0.2761904762 | H40: 0.5353535354 | I40: 0.3142857143 | J40: 0.8917 | K40: 0.9513 | L40: 0.9653 | M40: 0.008805031447 | N40: 0.03145695364 | O40: 0.9935064935 | P40: 1 | Q40: 1 | R40: 1
A41: Marinette County | B41: 1 | C41: 1 | D41: 0.9310344828 | E41: 0.5483870968 | F41: 0.9 | G41: 0.5161290323 | H41: 0.8 | I41: 0.4516129032 | J41: 0.98 | K41: 0.9872 | L41: 0.9103 | M41: 0.01583113456 | N41: 0.04448246364 | O41: 1 | P41: 1 | Q41: 1 | R41: 0.9545454545
A42: Marquette County | B42: 1 | C42: 1 | D42: 0.5 | E42: 0.5 | F42: 0.6666666667 | G42: 0.3333333333 | H42: 0.5 | I42: 0.5 | J42: 0.9833 | K42: 1 | L42: 1 | M42: 0 | N42: 0.01923076923 | O42: 0.9375 | P42: 1 | Q42: 0.8333333333 | R42: 0.875
A43: Milwaukee County | B43: 0.9996249062 | C43: 0.9689863843 | D43: 0.6656671664 | E43: 0.612244898 | F43: 0.7139534884 | G43: 0.4489795918 | H43: 0.7487244898 | I43: 0.6132653061 | J43: 0.912 | K43: 0.9702 | L43: 0.9338 | M43: 0.01402342056 | N43: 0.03155131265 | O43: 0.9970436068 | P43: 0.9978902954 | Q43: 0.9900849858 | R43: 0.9756944444
A44: Monroe County | B44: 1 | C44: 1 | D44: 0.3333333333 | E44: 0.3333333333 | F44: 0.4090909091 | G44: 0.1666666667 | H44: 0.55 | I44: 0.3333333333 | J44: 0.9833 | K44: 0.9444 | L44: 0.9306 | M44: 0.006525285481 | N44: 0.02444444444 | O44: 0.9772727273 | P44: 1 | Q44: 1 | R44: 1
A45: Oconto County | B45: 1 | C45: 1 | D45: 0.5 | E45: 0.2903225806 | F45: 0.5862068966 | G45: 0.2580645161 | H45: 0.6896551724 | I45: 0.3225806452 | J45: 0.98 | K45: 0.9872 | L45: 0.9103 | M45: 0.006153846154 | N45: 0.03601895735 | O45: 1 | P45: 1 | Q45: 1 | R45: 1
A46: Oneida County | B46: 1 | C46: 1 | D46: 0.72 | E46: 0.4285714286 | F46: 0.7777777778 | G46: 0.4285714286 | H46: 0.8518518519 | I46: 0.5714285714 | J46: 0.9 | K46: 1 | L46: 0.9167 | M46: 0.01063829787 | N46: 0.05638665132 | O46: 1 | P46: 1 | Q46: 1 | R46: 1
A47: Outagamie County | B47: 1 | C47: 1 | D47: 0.4574468085 | E47: 0.406779661 | F47: 0.5940594059 | G47: 0.4152542373 | H47: 0.5462962963 | I47: 0.4237288136 | J47: 0.88 | K47: 0.9639 | L47: 0.9405 | M47: 0.01032315978 | N47: 0.02699896158 | O47: 0.9953271028 | P47: 1 | Q47: 0.9909090909 | R47: 1
A48: Ozaukee County | B48: 1 | C48: 1 | D48: 0.5454545455 | E48: 0.4117647059 | F48: 0.7346938776 | G48: 0.2745098039 | H48: 0.5714285714 | I48: 0.3921568627 | J48: 0.87 | K48: 0.9091 | L48: 0.9394 | M48: 0.02046035806 | N48: 0.0378240544 | O48: 0.8888888889 | P48: 0.9508196721 | Q48: 0.8260869565 | R48: 0.8333333333
A49: Pepin County | B49: 1 | C49: 1 | D49: 0 | E49: 0.5 | F49: 0 | G49: 0.25 | H49: 0.3333333333 | I49: 0.5 | J49: 0 | K49: 0 | L49: 0 | M49: 0 | N49: 0.02666666667 | O49: 1 | P49: 1 | Q49: 1 | R49: 1
A50: Pierce County | B50: 1 | C50: 1 | D50: 0.5 | E50: 0.6857142857 | F50: 0.8 | G50: 0.5428571429 | H50: 0.7857142857 | I50: 0.7142857143 | J50: 0.95 | K50: 0.9667 | L50: 0.9917 | M50: 0.01694915254 | N50: 0.03350083752 | O50: 1 | P50: 1 | Q50: 0.9545454545 | R50: 1
A51: Polk County | B51: 1 | C51: 1 | D51: 0.4545454545 | E51: 0.5161290323 | F51: 0.3448275862 | G51: 0.2580645161 | H51: 0.4615384615 | I51: 0.4516129032 | J51: 0.9833 | K51: 0.9861 | L51: 0.9931 | M51: 0.02059496568 | N51: 0.03363914373 | O51: 1 | P51: 1 | Q51: 1 | R51: 1
A52: Portage County | B52: 1 | C52: 1 | D52: 0.3103448276 | E52: 0.21875 | F52: 0.3225806452 | G52: 0.15625 | H52: 0.1428571429 | I52: 0.1875 | J52: 0.9786 | K52: 0.9821 | L52: 1 | M52: 0.008498583569 | N52: 0.02283539486 | O52: 1 | P52: 1 | Q52: 1 | R52: 1
A53: Price County | B53: 1 | C53: 1 | D53: 0.3333333333 | E53: 0.4285714286 | F53: 0.4285714286 | G53: 0.4285714286 | H53: 0.6 | I53: 0.7142857143 | J53: 1 | K53: 1 | L53: 1 | M53: 0.008333333333 | N53: 0.0237388724 | O53: 0.8888888889 | P53: 1 | Q53: 0.8333333333 | R53: 0.8333333333
A54: Racine County | B54: 1 | C54: 1 | D54: 0.6761904762 | E54: 0.5307692308 | F54: 0.725 | G54: 0.3923076923 | H54: 0.75 | I54: 0.6 | J54: 0.94 | K54: 0.9442 | L54: 0.9695 | M54: 0.01058873359 | N54: 0.02569114772 | O54: 1 | P54: 1 | Q54: 0.9833333333 | R54: 0.8837209302
A55: Richland County | B55: 1 | C55: 1 | D55: 0.3333333333 | E55: 0.8 | F55: 0.5 | G55: 0.4 | H55: 0.75 | I55: 0.8 | J55: 0.9744 | K55: 0.9479 | L55: 0.9479 | M55: 0.005586592179 | N55: 0.02888086643 | O55: 0.9523809524 | P55: 1 | Q55: 1 | R55: 1
A56: Rock County | B56: 1 | C56: 1 | D56: 0.3636363636 | E56: 0.4814814815 | F56: 0.5 | G56: 0.3611111111 | H56: 0.5 | I56: 0.4722222222 | J56: 0.91 | K56: 0.8994 | L56: 0.9553 | M56: 0.01095461659 | N56: 0.02899305556 | O56: 1 | P56: 1 | Q56: 1 | R56: 1
A57: Rusk County | B57: 1 | C57: 1 | D57: 0 | E57: 0.7272727273 | F57: 0.2 | G57: 0.2727272727 | H57: 0.25 | I57: 0.7272727273 | J57: 0.96 | K57: 0.9833 | L57: 1 | M57: 0.01307189542 | N57: 0.03456790123 | O57: 1 | P57: 1 | Q57: 1 | R57: 1
A58: St Croix County | B58: 1 | C58: 0.9885057471 | D58: 0.3846153846 | E58: 0.696969697 | F58: 0.52 | G58: 0.5151515152 | H58: 0.7 | I58: 0.7121212121 | J58: 0.86 | K58: 0.9175 | L58: 0.9216 | M58: 0.01053639847 | N58: 0.0272812794 | O58: 1 | P58: 1 | Q58: 0.9791666667 | R58: 1
A59: Sauk County | B59: 1 | C59: 1 | D59: 0.5714285714 | E59: 0.5333333333 | F59: 0.7 | G59: 0.4222222222 | H59: 0.7878787879 | I59: 0.6222222222 | J59: 1 | K59: 1 | L59: 0.9762 | M59: 0.006553079948 | N59: 0.02502194908 | O59: 1 | P59: 1 | Q59: 1 | R59: 1
A60: Sawyer County | B60: 1 | C60: 0.8181818182 | D60: 0.2857142857 | E60: 0.375 | F60: 0.1666666667 | G60: 0.375 | H60: 0.1666666667 | I60: 0.375 | J60: 1 | K60: 0.9722 | L60: 0.875 | M60: 0.01851851852 | N60: 0.02186878728 | O60: 1 | P60: 1 | Q60: 1 | R60: 1
A61: Shawano County | B61: 1 | C61: 1 | D61: 0.6 | E61: 0.5897435897 | F61: 0.7567567568 | G61: 0.3076923077 | H61: 0.7272727273 | I61: 0.6153846154 | J61: 0.96 | K61: 0.9667 | L61: 1 | M61: 0.01187648456 | N61: 0.03637770898 | O61: 1 | P61: 1 | Q61: 1 | R61: 1
A62: Sheboygan County | B62: 1 | C62: 1 | D62: 0.5081967213 | E62: 0.3956834532 | F62: 0.6015037594 | G62: 0.3669064748 | H62: 0.618705036 | I62: 0.3597122302 | J62: 0.9 | K62: 0.94 | L62: 0.963 | M62: 0.01193520887 | N62: 0.0368309486 | O62: 1 | P62: 0.9936305732 | Q62: 1 | R62: 1
A63: Taylor County | B63: 1 | C63: 1 | D63: 0.5 | E63: 0.6842105263 | F63: 0.4375 | G63: 0.4736842105 | H63: 0.6666666667 | I63: 0.8421052632 | J63: 0.9917 | K63: 0.9514 | L63: 0.9236 | M63: 0.01333333333 | N63: 0.04464285714 | O63: 1 | P63: 1 | Q63: 1 | R63: 1
A64: Trempealeau County | B64: 1 | C64: 1 | D64: 0.3333333333 | E64: 0.6 | F64: 0.3333333333 | G64: 0.4 | H64: 0.25 | I64: 0.6 | J64: 0.8 | K64: 0.7917 | L64: 0.9375 | M64: 0.01526717557 | N64: 0.02546689304 | O64: 1 | P64: 1 | Q64: 1 | R64: 1
A65: Vernon County | B65: 1 | C65: 1 | D65: 0.5714285714 | E65: 0.3043478261 | F65: 0.4347826087 | G65: 0.2173913043 | H65: 0.4782608696 | I65: 0.4347826087 | J65: 0.8 | K65: 0.7917 | L65: 0.9375 | M65: 0.00479616307 | N65: 0.02076677316 | O65: 1 | P65: 1 | Q65: 1 | R65: 1
A66: Vilas County | B66: 1 | C66: 1 | D66: 0.8 | E66: 0.5454545455 | F66: 0.8095238095 | G66: 0.3181818182 | H66: 0.7619047619 | I66: 0.4545454545 | J66: 1 | K66: 1 | L66: 0.9583 | M66: 0.02116402116 | N66: 0.05667276051 | O66: 1 | P66: 1 | Q66: 1 | R66: 1
A67: Walworth County | B67: 1 | C67: 1 | D67: 0.4912280702 | E67: 0.4722222222 | F67: 0.5454545455 | G67: 0.3611111111 | H67: 0.5 | I67: 0.3611111111 | J67: 0.93 | K67: 0.9213 | L67: 0.8837 | M67: 0.00884086444 | N67: 0.03134996801 | O67: 1 | P67: 1 | Q67: 0.9607843137 | R67: 1
A68: Washburn County | B68: 1 | C68: 1 | D68: 0.3333333333 | E68: 0.3 | F68: 0.2 | G68: 0.2 | H68: 0.2222222222 | I68: 0.3 | J68: 0.9875 | K68: 1 | L68: 0.9896 | M68: 0.03896103896 | N68: 0.05066079295 | O68: 1 | P68: 1 | Q68: 1 | R68: 1
A69: Washington County | B69: 1 | C69: 1 | D69: 0.4202898551 | E69: 0.3956043956 | F69: 0.5679012346 | G69: 0.3186813187 | H69: 0.4931506849 | I69: 0.4285714286 | J69: 0.93 | K69: 0.9394 | L69: 0.8788 | M69: 0.006460875808 | N69: 0.03164400494 | O69: 1 | P69: 1 | Q69: 1 | R69: 0.9821428571
A70: Waukesha County | B70: 1 | C70: 1 | D70: 0.6015037594 | E70: 0.4733333333 | F70: 0.6275862069 | G70: 0.32 | H70: 0.6456692913 | I70: 0.52 | J70: 0.87 | K70: 0.8803 | L70: 0.8542 | M70: 0.005202913632 | N70: 0.01720824598 | O70: 1 | P70: 1 | Q70: 0.9803921569 | R70: 0.9770992366
A71: Waupaca County | B71: 1 | C71: 1 | D71: 0.4827586207 | E71: 0.5263157895 | F71: 0.4444444444 | G71: 0.2631578947 | H71: 0.5 | I71: 0.4210526316 | J71: 0.98 | K71: 0.9833 | L71: 0.9333 | M71: 0.01123595506 | N71: 0.03414948454 | O71: 0.9811320755 | P71: 1 | Q71: 1 | R71: 1
A72: Waushara County | B72: 1 | C72: 1 | D72: 0.4 | E72: 0.2 | F72: 0.5 | G72: 0.2 | H72: 0.6 | I72: 0.4 | J72: 0.9833 | K72: 0.9722 | L72: 0.9375 | M72: 0.004504504505 | N72: 0.01911764706 | O72: 1 | P72: 1 | Q72: 1 | R72: 1
A73: Winnebago County | B73: 0.9964912281 | C73: 1 | D73: 0.4871794872 | E73: 0.2988505747 | F73: 0.5119047619 | G73: 0.183908046 | H73: 0.5833333333 | I73: 0.3103448276 | J73: 0.84 | K73: 0.9053 | L73: 0.8438 | M73: 0.01043956044 | N73: 0.02640560445 | O73: 0.9681528662 | P73: 1 | Q73: 1 | R73: 1
A74: Wood County | B74: 1 | C74: 1 | D74: 0.5 | E74: 0.6666666667 | F74: 0.6511627907 | G74: 0.4791666667 | H74: 0.5925925926 | I74: 0.7291666667 | J74: 0.8833 | K74: 0.8472 | L74: 0.8889 | M74: 0.006527415144 | N74: 0.02925639984 | O74: 1 | P74: 1 | Q74: 1 | R74: 1
A75: Menominee County | B75: 1 | C75: 1 | D75: 1 | E75: 0.5 | F75: 1 | G75: 0.5 | H75: 1 | I75: 0.75 | J75: 1 | K75: 0.9792 | L75: 0.9792 | M75: 0.01136363636 | N75: 0.03169014085 | O75: 0.9166666667 | P75: 0.8 | Q75: 1 | R75: 1

Sheet Sheet1 (hidden)
A1: COUNTY | B1: Indicator 1 - Percent of infants and toddlers with Individual Family Service Plans (IFSP) who receive the early intervention services on their IFSPs in a timely manner. | C1: Indicator 2 - Percent of infants and toddlers with IFSPs who primarily receive early intervention services in the home or programs for typically developing children. | D1: Indicator 3 Outcome 1 Summary Statement 1 Of the children who entered the program below age expectations in each outcome, the percent who substantially increased their rate of growth by the time they exited B-3 | E1: Indicator 3 Outcome 1 Summary Statement 2 The percent of children who were functioning within age expectations in each Outcome by the time they exited the program | F1: Indicator 3 Outcome 2 Summary Statement 1 Of the children who entered the program below age expectations in each Outcome, the percent who substantially increased their rate of growth by the time they exited B-3 | G1: Indicator 3 Outcome 2 Summary Statement 2 The percent of children who were functioning within age expectations in each Outcome by the time they exited the program | H1: Indicator 3 Outcome 3 Summary Statement 1 Of the children who entered the program below age expectations in each outcome, the percent who substantially increased their rate of growth by the time they exited B-3 | I1: Indicator 3 Outcome 3 Summary Statement 2 The percent of children who were functioning within age expectations in each Outcome by the time they exited the program | J1: Indicator 4A - Percent of families reporting early intervention services have helped the family know their rights. | K1: Indicator 4B - Percent of families reporting early intervention services have helped the family effectively communicate their child's needs. | L1: Indicator 4C - Percent of families reporting early intervention services have helped the family help their child develop and learn. | M1: Indicator 5- Percent of infants and toddlers birth to 1 with IFSPs. | N1: Indicator 6 - Percent of infants and toddlers birth to 3 with IFSPs. | O1: Indicator 7- Percent of eligible infants and toddlers with IFSPs for whom an evaluation and assessment and initial IFSP meeting were conducted in a timely manner. | P1: Indicator 8A - Percent of all children exiting Part C who received timely transition planning to support the child's transition to preschool and other appropriate community services by their third birthday including: IFSPs with transition steps and services. | Q1: Indicator 8B - Percent of all children exiting Part C who received timely transition planning to support the child's transition to preschool and other appropriate community services by their third birthday including: Notification to LEA, if child potentially eligible for Part B. | R1: Indicator 8C - Percent of all children exiting Part C who received timely transition planning to support the child's transition to preschool and other appropriate community services by their third birthday including transition planning conference, if child potentially eligible for Part B. OCCURRED | S1: Indicator 8C - Percent of all children exiting Part C who received timely transition planning to support the child's transition to preschool and other appropriate community services by their third birthday including transition planning conference, if child potentially eligible for Part B. TIMELY
A2: State Target | B2: 1 | C2: 0.9633 | D2: 0.5902 | E2: 0.6612 | F2: 0.6612 | G2: 0.5072 | H2: 0.6952 | I2: 0.6852 | J2: 0.8285 | K2: 0.8751 | L2: 0.8522 | M2: 0.0095 | N2: 0.0282 | O2: 1 | P2: 1 | Q2: 1 | R2: 1 | S2: 1
A3: Overall State Result | B3: 0.9979 | C3: 0.9888 | D3: 0.5078 | E3: 0.5542 | F3: 0.6039 | G3: 0.4169 | H3: 0.6249 | I3: 0.5875 | J3: 0.8325 | K3: 0.8793 | L3: 0.853 | M3: 0.0102 | N3: 0.0284 | O3: 0.9976 | P3: 0.9972 | Q3: 0.9798 | R3: 0.9764 | S3: 0.9861
A4: Adams County | B4: 1 | C4: 1 | D4: 0.867 | E4: 0.588 | F4: 0.824 | G4: 0.529 | H4: 0.868 | I4: 0.765 | J4: 0.5 | K4: 0.5 | L4: 0.5 | M4: 0.0139 | N4: 0.0556 | O4: 0.931 | P4: 1 | Q4: 1 | R4: 1 | S4: 1
A5: Ashland County | B5: 1 | C5: 1 | D5: 0.571 | E5: 0.5 | F5: 0.833 | G5: 0.5 | H5: 1 | I5: 0.625 | J5: 1 | K5: 1 | L5: 1 | M5: 0.0164 | N5: 0.0205 | O5: 1 | P5: 0.75 | Q5: 0.75 | R5: 1 | S5: 0.5
A6: Barron County | B6: 0.9808 | C6: 0.9804 | D6: 0.25 | E6: 0.545 | F6: 0.5 | G6: 0.485 | H6: 0.615 | I6: 0.636 | J6: 0.8 | K6: 0.8667 | L6: 0.8 | M6: 0.0098 | N6: 0.0319 | O6: 1 | P6: 0.8974 | Q6: 0.9583 | R6: 0.96 | S6: 1
A7: Bayfield County | B7: 1 | C7: 1 | D7: 0.286 | E7: 0.286 | F7: 0.429 | G7: 0.143 | H7: 0.333 | I7: 0.333 | J7: 0 | K7: 0 | L7: 0 | M7: 0.0087 | N7: 0.0205 | O7: 1 | P7: 1 | Q7: 0 | R7: 0.6667 | S7: 1
A8: Brown County | B8: 1 | C8: 0.9953 | D8: 0.513 | E8: 0.349 | F8: 0.636 | G8: 0.271 | H8: 0.584 | I8: 0.295 | J8: 0.6923 | K8: 0.6923 | L8: 0.7692 | M8: 0.0089 | N8: 0.0211 | O8: 1 | P8: 1 | Q8: 0.9923 | R8: 0.9917 | S8: 1
A9: Buffalo County | B9: 1 | C9: 1 | D9: 0.333 | E9: 0.5 | F9: 0.167 | G9: 0.25 | H9: 0.2 | I9: 0.5 | J9: 0.75 | K9: 1 | L9: 1 | M9: 0.0126 | N9: 0.0171 | O9: 1 | P9: 1 | Q9: 1 | R9: 1 | S9: 1
A10: Burnett County | B10: 1 | C10: 0.9474 | D10: 0.2 | E10: 0.5 | F10: 0.143 | G10: 0.25 | H10: 0.429 | I10: 0.375 | J10: 0 | K10: 0.5 | L10: 0.5 | M10: 0.0161 | N10: 0.0475 | O10: 1 | P10: 1 | Q10: 1 | R10: 1 | S10: 1
A11: Calumet County | B11: 1 | C11: 1 | D11: 0.429 | E11: 0.792 | F11: 0.5 | G11: 0.417 | H11: 0.667 | I11: 0.917 | J11: 0.75 | K11: 0.875 | L11: 1 | M11: 0.013 | N11: 0.0276 | O11: 1 | P11: 1 | Q11: 1 | R11: 0.9211 | S11: 1
A12: Chippewa County | B12: 0.9944 | C12: 1 | D12: 0.345 | E12: 0.722 | F12: 0.468 | G12: 0.589 | H12: 0.478 | I12: 0.819 | J12: 0.8889 | K12: 1 | L12: 0.9444 | M12: 0.0116 | N12: 0.041 | O12: 1 | P12: 1 | Q12: 1 | R12: 0.9804 | S12: 1
A13: Clark County | B13: 1 | C13: 1 | D13: 0.708 | E13: 0.548 | F13: 0.778 | G13: 0.323 | H13: 0.792 | I13: 0.613 | J13: 1 | K13: 0.9231 | L13: 1 | M13: 0.012 | N13: 0.0266 | O13: 1 | P13: 1 | Q13: 0.9583 | R13: 1 | S13: 1
A14: Columbia County | B14: 1 | C14: 0.9259 | D14: 0.35 | E14: 0.333 | F14: 0.381 | G14: 0.208 | H14: 0.5 | I14: 0.542 | J14: 0.8182 | K14: 0.9091 | L14: 1 | M14: 0.0064 | N14: 0.0148 | O14: 1 | P14: 1 | Q14: 0.9545 | R14: 1 | S14: 1
A15: Crawford County | B15: 1 | C15: 0.9474 | D15: 0.6 | E15: 0.643 | F15: 0.923 | G15: 0.429 | H15: 0.9 | I15: 0.786 | J15: 1 | K15: 1 | L15: 1 | M15: 0.0063 | N15: 0.0404 | O15: 1 | P15: 1 | Q15: 1 | R15: 1 | S15: 1
A16: Dane County | B16: 0.9934 | C16: 0.9974 | D16: 0.445 | E16: 0.541 | F16: 0.564 | G16: 0.409 | H16: 0.616 | I16: 0.565 | J16: 0.75 | K16: 0.9167 | L16: 0.7458 | M16: 0.0061 | N16: 0.0216 | O16: 0.9981 | P16: 1 | Q16: 0.995 | R16: 0.9257 | S16: 0.9829
A17: Dodge County | B17: 1 | C17: 0.9652 | D17: 0.209 | E17: 0.544 | F17: 0.564 | G17: 0.468 | H17: 0.543 | I17: 0.671 | J17: 0.8 | K17: 0.9 | L17: 0.85 | M17: 0.0083 | N17: 0.0447 | O17: 1 | P17: 1 | Q17: 1 | R17: 0.9608 | S17: 0.9608
A18: Door County | B18: 1 | C18: 1 | D18: 0.5 | E18: 0.667 | F18: 0.455 | G18: 0.533 | H18: 0.667 | I18: 0.667 | J18: 0.875 | K18: 1 | L18: 0.875 | M18: 0.0152 | N18: 0.0304 | O18: 1 | P18: 1 | Q18: 1 | R18: 1 | S18: 1
A19: Douglas County | B19: 1 | C19: 1 | D19: 0.515 | E19: 0.442 | F19: 0.69 | G19: 0.256 | H19: 0.73 | I19: 0.581 | J19: 0.8 | K19: 0.8 | L19: 0.8 | M19: 0.0071 | N19: 0.0315 | O19: 0.9811 | P19: 0.9815 | Q19: 0.9756 | R19: 1 | S19: 1
A20: Dunn County | B20: 1 | C20: 1 | D20: 0.316 | E20: 0.543 | F20: 0.6 | G20: 0.429 | H20: 0.519 | I20: 0.714 | J20: 0.7857 | K20: 0.8571 | L20: 0.9286 | M20: 0.0046 | N20: 0.0291 | O20: 1 | P20: 1 | Q20: 1 | R20: 0.8889 | S20: 1
A21: Eau Claire County | B21: 1 | C21: 1 | D21: 0.477 | E21: 0.385 | F21: 0.574 | G21: 0.346 | H21: 0.692 | I21: 0.551 | J21: 0.8182 | K21: 0.9545 | L21: 0.9545 | M21: 0.0137 | N21: 0.0345 | O21: 1 | P21: 1 | Q21: 1 | R21: 1 | S21: 1
A22: Florence County | B22: 1 | C22: 1 | D22: 1 | E22: 1 | F22: 1 | G22: 1 | H22: 0 | I22: 0 | J22: 0 | K22: 0 | L22: 0 | M22: 0 | N22: 0.0118 | O22: 1 | P22: 1 | Q22: 1 | R22: 1 | S22: 1
A23: Fond du Lac County | B23: 1 | C23: 1 | D23: 0.605 | E23: 0.508 | F23: 0.653 | G23: 0.39 | H23: 0.673 | I23: 0.542 | J23: 0.8667 | K23: 0.7333 | L23: 0.9333 | M23: 0.0152 | N23: 0.0324 | O23: 1 | P23: 1 | Q23: 1 | R23: 1 | S23: 1
A24: Forest County | B24: 1 | C24: 1 | D24: 0.667 | E24: 0.333 | F24: 0.667 | G24: 0.5 | H24: 0.667 | I24: 0.333 | J24: 0 | K24: 0 | L24: 0 | M24: 0 | N24: 0.0233 | O24: 1 | P24: 1 | Q24: 1 | R24: 0.75 | S24: 1
A25: Grant County | B25: 1 | C25: 1 | D25: 0.5 | E25: 0.833 | F25: 0.583 | G25: 0.667 | H25: 0.714 | I25: 0.833 | J25: 1 | K25: 0.75 | L25: 1 | M25: 0.0057 | N25: 0.0137 | O25: 1 | P25: 1 | Q25: 1 | R25: 1 | S25: 1
A26: Green County | B26: 1 | C26: 1 | D26: 0.625 | E26: 0.862 | F26: 0.882 | G26: 0.862 | H26: 0.7 | I26: 0.862 | J26: 1 | K26: 0.8333 | L26: 1 | M26: 0.019 | N26: 0.0315 | O26: 1 | P26: 1 | Q26: 1 | R26: 1 | S26: 1
A27: Green Lake County | B27: 1 | C27: 0.9444 | D27: 0.4 | E27: 0.375 | F27: 0.333 | G27: 0.25 | H27: 0.4 | I27: 0.625 | J27: 1 | K27: 0.75 | L27: 0.75 | M27: 0.0137 | N27: 0.0284 | O27: 1 | P27: 1 | Q27: 1 | R27: 1 | S27: 1
A28: Iowa County | B28: 1 | C28: 1 | D28: 0.875 | E28: 0.5 | F28: 0.625 | G28: 0.333 | H28: 0.75 | I28: 0.5 | J28: 0.5 | K28: 1 | L28: 1 | M28: 0.0157 | N28: 0.0157 | O28: 1 | P28: 1 | Q28: 1 | R28: 1 | S28: 0.9
A29: Iron County | B29: 1 | C29: 1 | D29: 0 | E29: 0.5 | F29: 0.5 | G29: 0.5 | H29: 0 | I29: 0.5 | J29: 1 | K29: 1 | L29: 1 | M29: 0.0256 | N29: 0.0336 | O29: 1 | P29: 1 | Q29: 1 | R29: 1 | S29: 1
A30: Jackson County | B30: 1 | C30: 1 | D30: 0 | E30: 0.143 | F30: 0.333 | G30: 0.286 | H30: 0.5 | I30: 0.571 | J30: 1 | K30: 1 | L30: 1 | M30: 0.0084 | N30: 0.0169 | O30: 1 | P30: 1 | Q30: 1 | R30: 1 | S30: 1
A31: Jefferson County | B31: 0.9956 | C31: 1 | D31: 0.125 | E31: 0.603 | F31: 0.53 | G31: 0.329 | H31: 0.385 | I31: 0.603 | J31: 0.96 | K31: 1 | L31: 0.96 | M31: 0.0125 | N31: 0.0426 | O31: 0.9915 | P31: 1 | Q31: 0.9863 | R31: 1 | S31: 0.9726
A32: Juneau County | B32: 1 | C32: 0.9706 | D32: 0.5 | E32: 0.4 | F32: 0.421 | G32: 0.25 | H32: 0.632 | I32: 0.3 | J32: 0.5 | K32: 0.8333 | L32: 1 | M32: 0.0136 | N32: 0.0416 | O32: 1 | P32: 1 | Q32: 1 | R32: 1 | S32: 1
A33: Kenosha County | B33: 1 | C33: 1 | D33: 0.333 | E33: 0.795 | F33: 0.567 | G33: 0.491 | H33: 0.583 | I33: 0.786 | J33: 0.9211 | K33: 0.9474 | L33: 0.9211 | M33: 0.0164 | N33: 0.0253 | O33: 1 | P33: 1 | Q33: 0.951 | R33: 0.9375 | S33: 1
A34: Kewaunee County | B34: 1 | C34: 1 | D34: 0.412 | E34: 0.389 | F34: 0.722 | G34: 0.278 | H34: 0.429 | I34: 0.556 | J34: 0.5 | K34: 0.5 | L34: 0.5 | M34: 0.0156 | N34: 0.0382 | O34: 1 | P34: 1 | Q34: 0.9474 | R34: 1 | S34: 1
A35: LaCrosse County | B35: 0.9948 | C35: 1 | D35: 0.404 | E35: 0.148 | F35: 0.55 | G35: 0.164 | H35: 0.467 | I35: 0.197 | J35: 0.75 | K35: 0.9167 | L35: 0.75 | M35: 0.0033 | N35: 0.0198 | O35: 1 | P35: 0.9737 | Q35: 0.8667 | R35: 1 | S35: 0.9091
A36: Lafayette County | B36: 1 | C36: 0.7778 | D36: 0.5 | E36: 0.667 | F36: 0.75 | G36: 0.222 | H36: 0.667 | I36: 0.889 | J36: 0.835 | K36: 0.8836 | L36: 0.8571 | M36: 0 | N36: 0.0145 | O36: 1 | P36: 1 | Q36: 0.6667 | R36: 1 | S36: 0.8333
A37: Langlade County | B37: 1 | C37: 1 | D37: 0.462 | E37: 0.313 | F37: 0.5 | G37: 0.313 | H37: 0.571 | I37: 0.5 | J37: 1 | K37: 1 | L37: 1 | M37: 0.0056 | N37: 0.0291 | O37: 1 | P37: 1 | Q37: 1 | R37: 1 | S37: 1
A38: Lincoln County | B38: 1 | C38: 1 | D38: 0.615 | E38: 0.588 | F38: 0.813 | G38: 0.529 | H38: 0.5 | I38: 0.706 | J38: 0 | K38: 0 | L38: 0 | M38: 0.0038 | N38: 0.0291 | O38: 1 | P38: 1 | Q38: 1 | R38: 1 | S38: 1
A39: Manitowoc County | B39: 1 | C39: 0.9925 | D39: 0.685 | E39: 0.682 | F39: 0.736 | G39: 0.617 | H39: 0.785 | I39: 0.748 | J39: 0.7273 | K39: 0.8182 | L39: 0.5455 | M39: 0.0197 | N39: 0.0551 | O39: 1 | P39: 1 | Q39: 0.9867 | R39: 1 | S39: 1
A40: Marathon County | B40: 0.9937 | C40: 1 | D40: 0.486 | E40: 0.373 | F40: 0.522 | G40: 0.311 | H40: 0.606 | I40: 0.462 | J40: 0.8889 | K40: 0.8515 | L40: 0.7778 | M40: 0.0094 | N40: 0.0325 | O40: 0.9935 | P40: 1 | Q40: 0.9811 | R40: 0.9714 | S40: 1
A41: Marinette County | B41: 1 | C41: 1 | D41: 0.8 | E41: 0.36 | F41: 0.84 | G41: 0.36 | H41: 0.8 | I41: 0.44 | J41: 0.875 | K41: 1 | L41: 1 | M41: 0.0074 | N41: 0.0332 | O41: 1 | P41: 1 | Q41: 1 | R41: 1 | S41: 1
A42: Marquette County | B42: 1 | C42: 1 | D42: 1 | E42: 1 | F42: 1 | G42: 1 | H42: 1 | I42: 1 | J42: 1 | K42: 1 | L42: 1 | M42: 0.0067 | N42: 0.0323 | O42: 1 | P42: 1 | Q42: 0 | R42: 1 | S42: 0
A43: Menominee County | B43: 1 | C43: 1 | D43: 0.833 | E43: 0.857 | F43: 0.857 | G43: 0.571 | H43: 0.75 | I43: 0.571 | J43: 0 | K43: 0 | L43: 0 | M43: 0.0114 | N43: 0.0263 | O43: 1 | P43: 1 | Q43: 1 | R43: 1 | S43: 1
A44: Milwaukee County | B44: 0.9993 | C44: 0.9576 | D44: 0.623 | E44: 0.624 | F44: 0.71 | G44: 0.476 | H44: 0.723 | I44: 0.65 | J44: 0.88 | K44: 0.8905 | L44: 0.8836 | M44: 0.0139 | N44: 0.0318 | O44: 0.998 | P44: 0.999 | Q44: 0.9847 | R44: 0.6934 | S44: 0.9924
A45: Monroe County | B45: 1 | C45: 1 | D45: 0.742 | E45: 0.333 | F45: 0.625 | G45: 0.235 | H45: 0.735 | I45: 0.382 | J45: 0 | K45: 0.5 | L45: 1 | M45: 0.0018 | N45: 0.0177 | O45: 1 | P45: 1 | Q45: 0.9333 | R45: 0.9667 | S45: 0.9667
A46: Oconto County | B46: 1 | C46: 1 | D46: 0.609 | E46: 0.481 | F46: 0.696 | G46: 0.37 | H46: 0.76 | I46: 0.556 | J46: 0.9375 | K46: 0.9375 | L46: 0.9375 | M46: 0.0166 | N46: 0.0301 | O46: 1 | P46: 1 | Q46: 1 | R46: 0.9615 | S46: 1
A47: Oneida County | B47: 1 | C47: 0.9818 | D47: 0.5 | E47: 0.355 | F47: 0.517 | G47: 0.258 | H47: 0.621 | I47: 0.355 | J47: NA | K47: NA | L47: NA | M47: 0.0035 | N47: 0.0584 | O47: 1 | P47: 1 | Q47: 0.92 | R47: 0.8333 | S47: 1
A48: Outagamie County | B48: 1 | C48: 1 | D48: 0.459 | E48: 0.429 | F48: 0.588 | G48: 0.402 | H48: 0.641 | I48: 0.479 | J48: 0.7879 | K48: 0.8485 | L48: 0.9788 | M48: 0.0066 | N48: 0.0251 | O48: 1 | P48: 1 | Q48: 0.991 | R48: 0.9735 | S48: 1
A49: Ozaukee County | B49: 1 | C49: 1 | D49: 0.594 | E49: 0.582 | F49: 0.717 | G49: 0.327 | H49: 0.676 | I49: 0.582 | J49: 0.9 | K49: 1 | L49: 0.8 | M49: 0.0138 | N49: 0.0333 | O49: 1 | P49: 0.9818 | Q49: 0.9545 | R49: 0.9318 | S49: 0.8182
A50: Pepin County | B50: 1 | C50: 1 | D50: 0.5 | E50: 0.333 | F50: 0 | G50: 0.333 | H50: 0.667 | I50: 0.667 | J50: 0 | K50: 0 | L50: 1 | M50: 0.0361 | N50: 0.0235 | O50: 1 | P50: 1 | Q50: 1 | R50: 1 | S50: 1
A51: Pierce County | B51: 1 | C51: 1 | D51: 0.7 | E51: 0.792 | F51: 0.778 | G51: 0.583 | H51: 0.9 | I51: 0.833 | J51: 0.5833 | K51: 1 | L51: 0.8333 | M51: 0.024 | N51: 0.0372 | O51: 1 | P51: 1 | Q51: 1 | R51: 1 | S51: 1
A52: Polk County | B52: 1 | C52: 1 | D52: 0.478 | E52: 0.606 | F52: 0.393 | G52: 0.394 | H52: 0.552 | I52: 0.515 | J52: 0.875 | K52: 0.875 | L52: 0.75 | M52: 0.0241 | N52: 0.0384 | O52: 1 | P52: 1 | Q52: 0.7647 | R52: 1 | S52: 1
A53: Portage County | B53: 1 | C53: 1 | D53: 0.219 | E53: 0.349 | F53: 0.452 | G53: 0.256 | H53: 0.226 | I53: 0.395 | J53: 1 | K53: 1 | L53: 1 | M53: 0.0077 | N53: 0.0243 | O53: 1 | P53: 1 | Q53: 1 | R53: 1 | S53: 1
A54: Price County | B54: 0.96 | C54: 1 | D54: 0.333 | E54: 0.75 | F54: 0.4 | G54: 0.625 | H54: 0 | I54: 0.875 | J54: 1 | K54: 0.75 | L54: 1 | M54: 0.0096 | N54: 0.0364 | O54: 1 | P54: 0.9091 | Q54: 1 | R54: 1 | S54: 1
A55: Racine County | B55: 1 | C55: 1 | D55: 0.55 | E55: 0.529 | F55: 0.652 | G55: 0.357 | H55: 0.612 | I55: 0.595 | J55: 0.8286 | K55: 0.8571 | L55: 0.8 | M55: 0.0111 | N55: 0.0274 | O55: 1 | P55: 1 | Q55: 0.9844 | R55: 0.7209 | S55: 0.9767
A56: Richland County | B56: 1 | C56: 0.9412 | D56: 0.6 | E56: 0.625 | F56: 0.444 | G56: 0.333 | H56: 0.6 | I56: 0.625 | J56: 1 | K56: 0.8333 | L56: 0.8333 | M56: 0.0221 | N56: 0.0299 | O56: 1 | P56: 1 | Q56: 1 | R56: 1 | S56: 1
A57: Rock County | B57: 0.9726 | C57: 0.9938 | D57: 0.493 | E57: 0.557 | F57: 0.56 | G57: 0.435 | H57: 0.524 | I57: 0.595 | J57: 0.8125 | K57: 0.9083 | L57: 0.75 | M57: 0.0075 | N57: 0.0278 | O57: 1 | P57: 1 | Q57: 1 | R57: 1 | S57: 0.9914
A58: Rusk County | B58: 1 | C58: 1 | D58: 0 | E58: 1 | F58: 0.571 | G58: 0.75 | H58: 1 | I58: 1 | J58: 1 | K58: 1 | L58: 1 | M58: 0.0088 | N58: 0.0385 | O58: 1 | P58: 1 | Q58: 0.8 | R58: 1 | S58: 1
A59: St Croix County | B59: 1 | C59: 1 | D59: 0.19 | E59: 0.773 | F59: 0.356 | G59: 0.373 | H59: 0.622 | I59: 0.72 | J59: 0.75 | K59: 0.75 | L59: 0.6667 | M59: 0.0194 | N59: 0.0304 | O59: 1 | P59: 1 | Q59: 0.9649 | R59: 0.96 | S59: 1
A60: Sauk County | B60: 1 | C60: 0.9825 | D60: 0.381 | E60: 0.675 | F60: 0.676 | G60: 0.55 | H60: 0.609 | I60: 0.65 | J60: 0.7222 | K60: 0.8333 | L60: 0.7222 | M60: 0.0054 | N60: 0.0249 | O60: 1 | P60: 1 | Q60: 0.9722 | R60: 1 | S60: 0.9429
A61: Sawyer County | B61: 1 | C61: 0.9333 | D61: 0.615 | E61: 0.647 | F61: 0.688 | G61: 0.412 | H61: 0.778 | I61: 0.765 | J61: 0.75 | K61: 0.75 | L61: 0.5 | M61: 0.023 | N61: 0.0295 | O61: 1 | P61: 1 | Q61: 1 | R61: 1 | S61: 0.9
A62: Shawano County | B62: 1 | C62: 1 | D62: 0.5 | E62: 0.455 | F62: 0.839 | G62: 0.273 | H62: 0.6 | I62: 0.515 | J62: 1 | K62: 1 | L62: 1 | M62: 0.0047 | N62: 0.0281 | O62: 1 | P62: 1 | Q62: 0.9655 | R62: 1 | S62: 1
A63: Sheboygan County | B63: 1 | C63: 1 | D63: 0.543 | E63: 0.373 | F63: 0.576 | G63: 0.365 | H63: 0.656 | I63: 0.317 | J63: 0.8857 | K63: 0.9429 | L63: 0.8286 | M63: 0.0179 | N63: 0.0447 | O63: 1 | P63: 1 | Q63: 1 | R63: 0.9896 | S63: 1
A64: Taylor County | B64: 1 | C64: 1 | D64: 0 | E64: 0.444 | F64: 0.143 | G64: 0.333 | H64: 0 | I64: 0.778 | J64: 0.5 | K64: 0.5 | L64: 0.5 | M64: 0.0144 | N64: 0.0336 | O64: 1 | P64: 1 | Q64: 1 | R64: 1 | S64: 1
A65: Trempealeau County | B65: 1 | C65: 1 | D65: 0.2 | E65: 0.471 | F65: 0.467 | G65: 0.294 | H65: 0.571 | I65: 0.588 | J65: 1 | K65: 1 | L65: 1 | M65: 0.0073 | N65: 0.0129 | O65: 0.9688 | P65: 1 | Q65: 1 | R65: 0.9412 | S65: 1
A66: Vernon County | B66: 1 | C66: 1 | D66: 0.476 | E66: 0.522 | F66: 0.478 | G66: 0.391 | H66: 0.476 | I66: 0.478 | J66: 0.75 | K66: 0.625 | L66: 0.5 | M66: 0.0114 | N66: 0.0203 | O66: 1 | P66: 1 | Q66: 1 | R66: 1 | S66: 1
A67: Vilas County | B67: 1 | C67: 1 | D67: 0.333 | E67: 0.333 | F67: 0.636 | G67: 0.417 | H67: 0.727 | I67: 0.5 | J67: 1 | K67: 0.3333 | L67: 0.6667 | M67: 0.0118 | N67: 0.0384 | O67: 1 | P67: 1 | Q67: 1 | R67: 0.75 | S67: 0.9167
A68: Walworth County | B68: 1 | C68: 1 | D68: 0.405 | E68: 0.51 | F68: 0.457 | G68: 0.392 | H68: 0.4 | I68: 0.392 | J68: 0.6875 | K68: 0.875 | L68: 0.8 | M68: 0.0116 | N68: 0.0245 | O68: 1 | P68: 1 | Q68: 0.9583 | R68: 0.973 | S68: 1
A69: Washburn County | B69: 1 | C69: 1 | D69: 0 | E69: 0.5 | F69: 0.5 | G69: 0.5 | H69: 0 | I69: 0.75 | J69: 1 | K69: 0.6667 | L69: 0.6667 | M69: 0.0203 | N69: 0.0221 | O69: 1 | P69: 1 | Q69: 1 | R69: 1 | S69: 1
A70: Washington County | B70: 1 | C70: 1 | D70: 0.4 | E70: 0.682 | F70: 0.462 | G70: 0.518 | H70: 0.429 | I70: 0.674 | J70: 0.875 | K70: 1 | L70: 0.875 | M70: 0.0062 | N70: 0.0326 | O70: 0.988 | P70: 0.9898 | Q70: 0.96 | R70: 0.9079 | S70: 0.9474
A71: Waukesha County | B71: 1 | C71: 1 | D71: 0.567 | E71: 0.676 | F71: 0.588 | G71: 0.505 | H71: 0.561 | I71: 0.687 | J71: 0.6333 | K71: 0.8333 | L71: 0.9 | M71: 0.0035 | N71: 0.0189 | O71: 1 | P71: 1 | Q71: 0.9724 | R71: 0.9187 | S71: 0.9919
A72: Waupaca County | B72: 0.9907 | C72: 1 | D72: 0.368 | E72: 0.581 | F72: 0.36 | G72: 0.419 | H72: 0.593 | I72: 0.484 | J72: 0.8889 | K72: 0.8889 | L72: 0.875 | M72: 0.0097 | N72: 0.0336 | O72: 1 | P72: 1 | Q72: 1 | R72: 0.9667 | S72: 1
A73: Waushara County | B73: 1 | C73: 1 | D73: 0.25 | E73: 0.5 | F73: 0.6 | G73: 0.5 | H73: 0.5 | I73: 0.167 | J73: 0.8 | K73: 1 | L73: 1 | M73: 0.0088 | N73: 0.0261 | O73: 1 | P73: 1 | Q73: 1 | R73: 0.8 | S73: 1
A74: Winnebago County | B74: 1 | C74: 1 | D74: 0.329 | E74: 0.267 | F74: 0.375 | G74: 0.198 | H74: 0.425 | I74: 0.302 | J74: 1 | K74: 1 | L74: 0.8889 | M74: 0.0064 | N74: 0.0223 | O74: 1 | P74: 1 | Q74: 1 | R74: 1 | S74: 1
A75: Wood County | B75: 1 | C75: 1 | D75: 0.474 | E75: 0.733 | F75: 0.475 | G75: 0.356 | H75: 0.438 | I75: 0.778 | J75: 0.8 | K75: 0.8 | L75: 0.8 | M75: 0.0221 | N75: 0.0221 | O75: 0.9767 | P75: 1 | Q75: 1 | R75: 1 | S75: 0.9677

Sheet Dashboard
A1: Instructions Step one: Click on a county name (Adams County (A2) or Ashland County (A25)) Step two: Click on the arrow to the right of the cell, a drop down menu will appear then select the County that would you like to observe. For the description of indicators hover mouse over red tags in the top right corner in cells A3 to A20. If you need further description right click on the desired indicator, select edit comment to read the full description.
A2: Adams County | B2: Dashboard APR Data | C2: State Targets | D2: Overall State Results
A3: Indicator 1 | B3: =VLOOKUP($A$2,Sheet4!$A$4:$S$75,2,FALSE) -> 1 | C3: 1 | D3: 0.9979
A4: Indicator 2 | B4: =VLOOKUP($A$2,Sheet4!$A$4:$S$75,3,FALSE) -> 1 | C4: 0.9633 | D4: 0.9888
A5: Indicator 3 O1 SS1 | B5: =VLOOKUP($A$2,Sheet4!$A$4:$S$75,4,FALSE) -> 0.75 | C5: 0.5902 | D5: 0.5078
A6: Indicator 3 O1 SS2 | B6: =VLOOKUP($A$2,Sheet4!$A$4:$S$75,5,FALSE) -> 0.7222222222 | C6: 0.6612 | D6: 0.5542
A7: Indicator 3 O2 SS1 | B7: =VLOOKUP($A$2,Sheet4!$A$4:$S$75,6,FALSE) -> 0.6875 | C7: 0.6612 | D7: 0.6039
A8: Indicator 3 O2 SS2 | B8: =VLOOKUP($A$2,Sheet4!$A$4:$S$75,7,FALSE) -> 0.6111111111 | C8: 0.5072 | D8: 0.4169
A9: Indicator 3 O3 SS1 | B9: =VLOOKUP($A$2,Sheet4!$A$4:$S$75,8,FALSE) -> 0.8333333333 | C9: 0.6952 | D9: 0.6249
A10: Indicator 3 O3 SS2 | B10: =VLOOKUP($A$2,Sheet4!$A$4:$S$75,9,FALSE) -> 0.9444444444 | C10: 0.6852 | D10: 0.5875
A11: Indicator 4A | B11: =VLOOKUP($A$2,Sheet4!$A$4:$S$75,10,FALSE) -> 1 | C11: 0.8285 | D11: 0.8325
A12: Indicator 4B | B12: =VLOOKUP($A$2,Sheet4!$A$4:$S$75,11,FALSE) -> 1 | C12: 0.8751 | D12: 0.8793
A13: Indicator 4C | B13: =VLOOKUP($A$2,Sheet4!$A$4:$S$75,12,FALSE) -> 1 | C13: 0.8522 | D13: 0.853
A14: Indicator 5 | B14: =VLOOKUP($A$2,Sheet4!$A$4:$S$75,13,FALSE) -> 0.02272727273 | C14: 0.0095 | D14: 0.0102
A15: Indicator 6 | B15: =VLOOKUP($A$2,Sheet4!$A$4:$S$75,14,FALSE) -> 0.06812652068 | C15: 0.0282 | D15: 0.0284
A16: Indicator 7 | B16: =VLOOKUP($A$2,Sheet4!$A$4:$S$75,15,FALSE) -> 0.9736842105 | C16: 1 | D16: 0.9976
A17: Indicator 8A | B17: =VLOOKUP($A$2,Sheet4!$A$4:$S$75,16,FALSE) -> 1 | C17: 1 | D17: 0.9972
A18: Indicator 8B | B18: =VLOOKUP($A$2,Sheet4!$A$4:$S$75,17,FALSE) -> 1 | C18: 1 | D18: 0.9798
A19: Indicator 8C | B19: =VLOOKUP($A$2,Sheet4!$A$4:$S$75,18,FALSE) -> 0.9444444444 | C19: 1 | D19: 0.9764
A25: Ashland County | B25: Dashboard APR Data | C25: State Targets | D25: Overall State Results
A26: Indicator 1 | B26: =VLOOKUP($A$25,Sheet4!$A$4:$R$75,2,FALSE) -> 1 | C26: 1 | D26: 0.9979
A27: Indicator 2 | B27: =VLOOKUP($A$25,Sheet4!$A$4:$R$75,3,FALSE) -> 1 | C27: 0.9633 | D27: 0.9888
A28: Indicator 3 O1 SS1 | B28: =VLOOKUP($A$25,Sheet4!$A$4:$R$75,4,FALSE) -> 0.5 | C28: 0.5902 | D28: 0.5078
A29: Indicator 3 O1 SS2 | B29: =VLOOKUP($A$25,Sheet4!$A$4:$R$75,5,FALSE) -> 0.8 | C29: 0.6612 | D29: 0.5542
A30: Indicator 3 O2 SS1 | B30: =VLOOKUP($A$25,Sheet4!$A$4:$R$75,6,FALSE) -> 0.75 | C30: 0.6612 | D30: 0.6039
A31: Indicator 3 O2 SS2 | B31: =VLOOKUP($A$25,Sheet4!$A$4:$R$75,7,FALSE) -> 0.6 | C31: 0.5072 | D31: 0.4169
A32: Indicator 3 O3 SS1 | B32: =VLOOKUP($A$25,Sheet4!$A$4:$R$75,8,FALSE) -> 1 | C32: 0.6952 | D32: 0.6249
A33: Indicator 3 O3 SS2 | B33: =VLOOKUP($A$25,Sheet4!$A$4:$R$75,9,FALSE) -> 0.6 | C33: 0.6852 | D33: 0.5875 | AE33: 0.5
A34: Indicator 4A | B34: =VLOOKUP($A$25,Sheet4!$A$4:$R$75,10,FALSE) -> 0 | C34: 0.8285 | D34: 0.8325
A35: Indicator 4B | B35: =VLOOKUP($A$25,Sheet4!$A$4:$R$75,11,FALSE) -> 0 | C35: 0.8751 | D35: 0.8793
A36: Indicator 4C | B36: =VLOOKUP($A$25,Sheet4!$A$4:$R$75,12,FALSE) -> 0 | C36: 0.8522 | D36: 0.853
A37: Indicator 5 | B37: =VLOOKUP($A$25,Sheet4!$A$4:$R$75,13,FALSE) -> 0.01075268817 | C37: 0.0095 | D37: 0.0102
A38: Indicator 6 | B38: =VLOOKUP($A$25,Sheet4!$A$4:$R$75,14,FALSE) -> 0.01098901099 | C38: 0.0282 | D38: 0.0284
A39: Indicator 7 | B39: =VLOOKUP($A$25,Sheet4!$A$4:$R$75,15,FALSE) -> 0.9166666667 | C39: 1 | D39: 0.9976
A40: Indicator 8A | B40: =VLOOKUP($A$25,Sheet4!$A$4:$R$75,16,FALSE) -> 1 | C40: 1 | D40: 0.9972
A41: Indicator 8B | B41: =VLOOKUP($A$25,Sheet4!$A$4:$R$75,17,FALSE) -> 1 | C41: 1 | D41: 0.9798
A42: Indicator 8C | B42: =VLOOKUP($A$25,Sheet4!$A$4:$R$75,18,FALSE) -> 0.75 | C42: 1 | D42: 0.9764
A49: Exist reasons | B49: State totals | C49: Percent
A50: 1 | B50: 5 | C50: =B50/$B$65 -> 0.0007634753397
A51: 2 | B51: 1087 | C51: =B51/$B$65 -> 0.1659795389
A52: 3 | B52: 115 | C52: 0.01755993281
A53: 4 | B53: 266 | C53: 0.04061688807
A54: 5 | B54: 187 | C54: 0.02855397771
A55: 6 | B55: 85 | C55: 0.01297908078
A56: 7 | B56: 187 | C56: 0.02855397771
A57: 8 | B57: 237 | C57: 0.0361887311
A58: 9 | B58: 8 | C58: 0.001221560544
A59: 10 | B59: 541 | C59: 0.08260803176
A60: 11 | B60: 2583 | C60: 0.3944113605
A61: 12 | B61: 439 | C61: 0.06703313483
A62: 13 | B62: 20 | C62: 0.003053901359
A63: 14 | B63: 749 | C63: 0.1143686059
A64: 15 | B64: 40 | C64: 0.006107802718
A65: Total # of children who exited the program | B65: =SUM(B50:B64) -> 6549 | C65: 1

Sheet Sheet3 (hidden)

Sheet Sheet2
